fUSD/lending_fUSD_20260625
["ID","MTS","AMOUNT","RATE_DAILY","PERIOD"]
[426393719,1782342640000,-29767.09,0.00013699,2]
[426393717,1782342640000,-427.32,0.00013699,2]
[426393709,1782342640000,-2327.39,0.00013698,2]
[426393712,1782342640000,-723.55,0.00013699,2]
[426393711,1782342640000,-2500.0,0.00013699,2]
[426393725,1782342640000,-150.0,0.00013728,2]
[426393705,1782342640000,-2327.39,0.00013698,2]
[426393707,1782342640000,-2327.39,0.00013698,2]
[426393713,1782342640000,-213.64,0.00013699,2]
[426393715,1782342640000,-213.64,0.00013699,2]
[426393710,1782342640000,-200.0,0.00013699,2]
[426393793,1782342641000,-150.0,0.00013965,2]
[426393791,1782342641000,-150.0,0.00013963,2]
[426393795,1782342641000,-150.0,0.00013966,2]
[426393781,1782342641000,-150.0,0.00013913,2]
[426393796,1782342641000,-150.0,0.00013969,2]
[426393787,1782342641000,-150.0,0.00013934,2]
[426393786,1782342641000,-150.0,0.00013932,2]
[426393784,1782342641000,-150.0,0.00013928,2]
[426393785,1782342641000,-150.0,0.0001393,2]
[426393782,1782342641000,-10895.92137952,0.00013921,2]
[426393798,1782342641000,-150.0,0.00013987,2]
[426393789,1782342641000,-150.0,0.0001395,2]
[426393794,1782342641000,-9819.89796294,0.00013966,2]
[426393800,1782342641000,-60000.0,0.0001399,2]
[426393799,1782342641000,-150.0,0.00013987,2]
[426393792,1782342641000,-150.0,0.00013965,2]
[426393797,1782342641000,-150.0,0.00013982,2]
[426393801,1782342641000,-150.0,0.00013998,2]
[426393803,1782342641000,-150.0,0.00013999,2]
[426393802,1782342641000,-150.0,0.00013999,2]
[426393806,1782342641000,-3478.942043,0.00014,2]
[426393805,1782342641000,-250.0,0.00014,2]
[426393804,1782342641000,-153.136966,0.00014,2]
[426393808,1782342641000,-150.0,0.00014006,2]
[426393807,1782342641000,-150.0,0.00014004,2]
[426393780,1782342641000,-150.0,0.00013913,2]
[426393790,1782342641000,-150.0,0.00013953,2]
[426393779,1782342641000,-150.0,0.00013902,2]
[426393809,1782342641000,-150.0,0.00014016,2]
[426393777,1782342641000,-3100.0,0.000139,5]
[426393752,1782342641000,-150.0,0.00013802,2]
[426393753,1782342641000,-150.0,0.00013807,2]
[426393755,1782342641000,-150.0,0.00013811,2]
[426393763,1782342641000,-150.0,0.00013845,2]
[426393764,1782342641000,-700.30026944,0.00013849,2]
[426393754,1782342641000,-500.0,0.00013808,2]
[426393756,1782342641000,-150.0,0.00013817,2]
[426393757,1782342641000,-150.0,0.00013821,2]
[426393758,1782342641000,-150.0,0.00013828,2]
[426393761,1782342641000,-150.0,0.00013839,2]
[426393759,1782342641000,-150.0,0.00013828,2]
[426393760,1782342641000,-150.0,0.00013838,2]
[426393762,1782342641000,-150.0,0.0001384,2]
[426393765,1782342641000,-150.0,0.00013849,2]
[426393766,1782342641000,-470.04006965,0.00013853,2]
[426393767,1782342641000,-150.0,0.00013853,2]
[426393769,1782342641000,-150.0,0.00013862,2]
[426393775,1782342641000,-150.0,0.00013896,2]
[426393773,1782342641000,-150.0,0.0001389,2]
[426393770,1782342641000,-150.0,0.0001387,2]
[426393768,1782342641000,-150.0,0.00013858,2]
[426393776,1782342641000,-150.0,0.00013896,2]
[426393772,1782342641000,-150.0,0.00013879,2]
[426393774,1782342641000,-150.0,0.00013895,2]
[426393771,1782342641000,-150.0,0.00013876,2]
[426393788,1782342641000,-150.0,0.00013947,2]
[426393778,1782342641000,-150.0,0.00013901,2]
[426393783,1782342641000,-150.0,0.00013926,2]
[426393811,1782342641000,-150.0,0.00014024,2]
[426393868,1782342641000,-150.0,0.00014237,2]
[426393821,1782342641000,-150.0,0.0001405,2]
[426393843,1782342641000,-150.0,0.00014144,2]
[426393841,1782342641000,-150.0,0.00014135,2]
[426393842,1782342641000,-150.0,0.00014135,2]
[426393844,1782342641000,-150.0,0.00014146,2]
[426393845,1782342641000,-150.0,0.00014152,2]
[426393849,1782342641000,-10895.92137952,0.00014166,2]
[426393858,1782342641000,-9819.89796294,0.00014199,2]
[426393859,1782342641000,-150.0,0.00014203,2]
[426393854,1782342641000,-150.0,0.00014186,2]
[426393852,1782342641000,-150.0,0.00014172,2]
[426393851,1782342641000,-150.0,0.00014169,2]
[426393855,1782342641000,-150.0,0.00014189,2]
[426393857,1782342641000,-150.0,0.00014193,2]
[426393856,1782342641000,-150.0,0.00014191,2]
[426393861,1782342641000,-150.0,0.00014209,2]
[426393853,1782342641000,-150.0,0.00014182,2]
[426393850,1782342641000,-150.0,0.00014169,2]
[426393860,1782342641000,-470.04006965,0.00014205,2]
[426393863,1782342641000,-150.0,0.00014219,2]
[426393862,1782342641000,-150.0,0.00014211,2]
[426393864,1782342641000,-150.0,0.0001422,2]
[426393865,1782342641000,-150.0,0.00014221,2]
[426393869,1782342641000,-150.0,0.00014237,2]
[426393866,1782342641000,-150.0,0.00014228,2]
[426393867,1782342641000,-150.0,0.00014237,2]
[426393870,1782342641000,-150.0,0.00014246,2]
[426393820,1782342641000,-150.0,0.00014043,2]
[426393840,1782342641000,-150.0,0.00014125,2]
[426393837,1782342641000,-150.0,0.00014109,2]
[426393871,1782342641000,-150.0,0.00014253,2]
[426393839,1782342641000,-150.0,0.00014118,2]
[426393838,1782342641000,-150.0,0.00014117,2]
[426393812,1782342641000,-1178.00238394,0.00014029,2]
[426393810,1782342641000,-150.0,0.00014017,2]
[426393815,1782342641000,-1624.11926312,0.00014029,2]
[426393813,1782342641000,-7196.64457979,0.00014029,2]
[426393816,1782342641000,-150.0,0.0001403,2]
[426393814,1782342641000,-1155.58666498,0.00014029,2]
[426393817,1782342641000,-150.0,0.00014033,2]
[426393818,1782342641000,-150.0,0.00014033,2]
[426393822,1782342641000,-150.0,0.00014056,2]
[426393824,1782342641000,-150.0,0.00014062,2]
[426393833,1782342641000,-150.0,0.00014101,2]
[426393828,1782342641000,-150.0,0.0001408,2]
[426393819,1782342641000,-150.0,0.00014036,2]
[426393825,1782342641000,-333.91,0.00014065,2]
[426393835,1782342641000,-150.0,0.00014105,2]
[426393847,1782342641000,-150.0,0.00014157,2]
[426393848,1782342641000,-150.0,0.00014159,2]
[426393846,1782342641000,-150.0,0.00014154,2]
[426393826,1782342641000,-150.0,0.00014067,2]
[426393829,1782342641000,-150.0,0.00014084,2]
[426393836,1782342641000,-150.0,0.00014108,2]
[426393830,1782342641000,-150.0,0.00014087,2]
[426393834,1782342641000,-150.0,0.00014101,2]
[426393831,1782342641000,-150.0,0.00014094,2]
[426393827,1782342641000,-150.0,0.00014073,2]
[426393823,1782342641000,-150.0,0.00014061,2]
[426393832,1782342641000,-150.0,0.00014098,2]
[426393914,1782342642000,-150.0,0.00014438,2]
[426393911,1782342642000,-150.0,0.00014424,2]
[426393912,1782342642000,-150.0,0.00014431,2]
[426393908,1782342642000,-150.0,0.00014412,2]
[426393902,1782342642000,-150.0,0.00014387,2]
[426393905,1782342642000,-4200.0,0.000144,5]
[426393903,1782342642000,-150.0,0.0001439,2]
[426393901,1782342642000,-150.0,0.0001438,2]
[426393906,1782342642000,-150.0,0.00014401,2]
[426393907,1782342642000,-150.0,0.00014407,2]
[426393904,1782342642000,-150.0,0.00014394,2]
[426393915,1782342642000,-150.0,0.00014441,2]
[426393919,1782342642000,-150.0,0.00014457,2]
[426393921,1782342642000,-150.0,0.00014468,2]
[426393916,1782342642000,-150.0,0.00014441,2]
[426393918,1782342642000,-150.0,0.0001445,2]
[426393917,1782342642000,-150.0,0.00014444,2]
[426393920,1782342642000,-150.0,0.00014458,2]
[426393925,1782342642000,-150.0,0.00014476,2]
[426393926,1782342642000,-150.0,0.00014487,2]
[426393922,1782342642000,-150.0,0.0001447,2]
[426393928,1782342642000,-150.0,0.00014492,2]
[426393924,1782342642000,-150.0,0.00014475,2]
[426393927,1782342642000,-150.0,0.00014487,2]
[426393900,1782342642000,-150.0,0.00014376,2]
[426393930,1782342642000,-500.0,0.00014499,2]
[426393913,1782342642000,-9819.89796294,0.00014433,2]
[426393909,1782342642000,-150.0,0.00014413,2]
[426393886,1782342642000,-150.0,0.00014317,2]
[426393899,1782342642000,-150.0,0.00014373,2]
[426393934,1782342642000,-500.0,0.00014499,2]
[426393873,1782342642000,-150.0,0.00014255,2]
[426393872,1782342642000,-150.0,0.00014254,2]
[426393874,1782342642000,-150.0,0.00014263,2]
[426393876,1782342642000,-150.0,0.00014271,2]
[426393880,1782342642000,-150.0,0.00014288,2]
[426393877,1782342642000,-150.0,0.00014281,2]
[426393882,1782342642000,-150.0,0.00014302,2]
[426393875,1782342642000,-150.0,0.00014265,2]
[426393879,1782342642000,-150.0,0.00014285,2]
[426393878,1782342642000,-150.0,0.00014283,2]
[426393883,1782342642000,-150.0,0.00014305,2]
[426393885,1782342642000,-150.0,0.00014315,2]
[426393884,1782342642000,-150.0,0.00014305,2]
[426393881,1782342642000,-150.0,0.00014292,2]
[426393888,1782342642000,-150.0,0.00014322,2]
[426393898,1782342642000,-150.0,0.00014373,2]
[426393887,1782342642000,-150.0,0.0001432,2]
[426393890,1782342642000,-150.0,0.00014339,2]
[426393889,1782342642000,-150.0,0.00014328,2]
[426393891,1782342642000,-150.0,0.00014339,2]
[426393897,1782342642000,-150.0,0.00014369,2]
[426393895,1782342642000,-150.0,0.00014365,2]
[426393896,1782342642000,-150.0,0.00014366,2]
[426393893,1782342642000,-150.0,0.00014356,2]
[426393892,1782342642000,-150.0,0.00014349,2]
[426393894,1782342642000,-150.0,0.00014357,2]
[426393910,1782342642000,-150.0,0.00014418,2]
[426393929,1782342642000,-640.57,0.00014497,2]
[426393968,1782342642000,-150.0,0.00014621,2]
[426393931,1782342642000,-520.11,0.00014499,2]
[426393966,1782342642000,-150.0,0.00014612,2]
[426393965,1782342642000,-150.0,0.00014604,2]
[426393992,1782342642000,-500.0,0.00014699,2]
[426393967,1782342642000,-150.0,0.00014616,2]
[426393969,1782342642000,-150.0,0.00014625,2]
[426393973,1782342642000,-150.0,0.00014636,2]
[426393970,1782342642000,-150.0,0.00014629,2]
[426393971,1782342642000,-150.0,0.00014634,2]
[426393972,1782342642000,-150.0,0.00014635,2]
[426393975,1782342642000,-150.0,0.00014646,2]
[426393984,1782342642000,-150.0,0.00014687,2]
[426393982,1782342642000,-150.0,0.00014676,2]
[426393980,1782342642000,-150.0,0.00014667,2]
[426393985,1782342642000,-150.0,0.0001469,2]
[426393977,1782342642000,-150.0,0.00014657,2]
[426393976,1782342642000,-150.0,0.00014653,2]
[426393983,1782342642000,-150.0,0.0001468,2]
[426393981,1782342642000,-150.0,0.00014672,2]
[426393978,1782342642000,-150.0,0.00014663,2]
[426393979,1782342642000,-9819.89796294,0.00014666,2]
[426393987,1782342642000,-150.0,0.00014697,2]
[426393986,1782342642000,-150.0,0.00014694,2]
[426393988,1782342642000,-500.0,0.00014699,2]
[426393990,1782342642000,-500.0,0.00014699,2]
[426393993,1782342642000,-562.9,0.00014699,2]
[426393989,1782342642000,-500.0,0.00014699,2]
[426393923,1782342642000,-150.0,0.00014475,2]
[426393963,1782342642000,-150.0,0.00014598,2]
[426393974,1782342642000,-150.0,0.00014646,2]
[426393991,1782342642000,-500.0,0.00014699,2]
[426393957,1782342642000,-150.0,0.00014578,2]
[426393964,1782342642000,-1000.0,0.000146,5]
[426393932,1782342642000,-500.0,0.00014499,2]
[426393933,1782342642000,-500.0,0.00014499,2]
[426393947,1782342642000,-150.0,0.0001454,2]
[426393937,1782342642000,-94087.32335088,0.000145,2]
[426393949,1782342642000,-150.0,0.00014544,2]
[426393948,1782342642000,-150.0,0.00014542,2]
[426393938,1782342642000,-5300.0,0.000145,5]
[426393940,1782342642000,-150.0,0.00014508,2]
[426393944,1782342642000,-150.0,0.00014521,2]
[426393942,1782342642000,-150.0,0.00014509,2]
[426393939,1782342642000,-150.0,0.00014505,2]
[426393943,1782342642000,-150.0,0.00014511,2]
[426393935,1782342642000,-500.0,0.00014499,2]
[426393945,1782342642000,-150.0,0.00014524,2]
[426393941,1782342642000,-150.0,0.00014509,2]
[426393961,1782342642000,-150.0,0.00014584,2]
[426393955,1782342642000,-150.0,0.00014572,2]
[426393960,1782342642000,-150.0,0.00014579,2]
[426393959,1782342642000,-150.0,0.00014578,2]
[426393962,1782342642000,-150.0,0.00014595,2]
[426393951,1782342642000,-150.0,0.00014548,2]
[426393946,1782342642000,-150.0,0.00014526,2]
[426393954,1782342642000,-150.0,0.00014561,2]
[426393950,1782342642000,-150.0,0.00014546,2]
[426393956,1782342642000,-150.0,0.00014573,2]
[426393952,1782342642000,-470.04006965,0.00014556,2]
[426393953,1782342642000,-150.0,0.00014561,2]
[426394029,1782342643000,-150.0,0.00014838,2]
[426394023,1782342643000,-150.0,0.0001481,2]
[426394025,1782342643000,-150.0,0.0001482,2]
[426394034,1782342643000,-150.0,0.00014857,2]
[426394031,1782342643000,-150.0,0.0001485,2]
[426394036,1782342643000,-150.0,0.00014867,2]
[426394033,1782342643000,-200.0,0.00014855,2]
[426394028,1782342643000,-150.0,0.00014833,2]
[426394032,1782342643000,-150.0,0.0001485,2]
[426394019,1782342643000,-150.0,0.00014799,2]
[426394030,1782342643000,-150.0,0.0001484,2]
[426394037,1782342643000,-150.0,0.00014875,2]
[426394035,1782342643000,-150.0,0.00014859,2]
[426394027,1782342643000,-150.0,0.00014831,2]
[426394024,1782342643000,-150.0,0.00014816,2]
[426394038,1782342643000,-150.0,0.00014877,2]
[426394039,1782342643000,-500.0,0.00014877,2]
[426394041,1782342643000,-150.0,0.00014883,2]
[426394040,1782342643000,-200.0,0.00014879,2]
[426394042,1782342643000,-150.0,0.00014884,2]
[426394044,1782342643000,-1942.52202715,0.00014893,2]
[426394043,1782342643000,-150.0,0.00014891,2]
[426394046,1782342643000,-1942.52202713,0.00014897,2]
[426394026,1782342643000,-150.0,0.00014827,2]
[426394020,1782342643000,-1000.0,0.000148,5]
[426394004,1782342643000,-150.0,0.0001473,2]
[426394017,1782342643000,-150.0,0.00014783,2]
[426394045,1782342643000,-150.0,0.00014894,2]
[426393994,1782342643000,-500.0,0.00014699,2]
[426393995,1782342643000,-500.0,0.00014699,2]
[426393996,1782342643000,-150.0,0.00014699,2]
[426393997,1782342643000,-1000.0,0.000147,5]
[426393999,1782342643000,-150.0,0.00014714,2]
[426393998,1782342643000,-150.0,0.00014709,2]
[426394007,1782342643000,-150.0,0.00014746,2]
[426394005,1782342643000,-150.0,0.00014731,2]
[426394003,1782342643000,-150.0,0.00014728,2]
[426394000,1782342643000,-150.0,0.00014714,2]
[426394018,1782342643000,-150.0,0.00014795,2]
[426394002,1782342643000,-150.0,0.00014727,2]
[426394008,1782342643000,-150.0,0.00014748,2]
[426394009,1782342643000,-150.0,0.00014763,2]
[426394006,1782342643000,-150.0,0.00014731,2]
[426394010,1782342643000,-150.0,0.00014764,2]
[426394021,1782342643000,-150.0,0.00014801,2]
[426394013,1782342643000,-150.0,0.0001478,2]
[426394012,1782342643000,-150.0,0.00014767,2]
[426394016,1782342643000,-150.0,0.00014782,2]
[426394011,1782342643000,-150.0,0.00014765,2]
[426394015,1782342643000,-150.0,0.00014782,2]
[426394022,1782342643000,-150.0,0.00014804,2]
[426394001,1782342643000,-150.0,0.00014722,2]
[426394047,1782342643000,-150.0,0.00014898,2]
[426394014,1782342643000,-200.0,0.00014781,2]
[426394049,1782342643000,-500.0,0.00014899,2]
[426394078,1782342643000,-15000.0,0.00014955,2]
[426394083,1782342643000,-150.0,0.00014986,2]
[426394082,1782342643000,-150.0,0.00014986,2]
[426394084,1782342643000,-150.00000001,0.00014986,2]
[426394081,1782342643000,-7195.87662382,0.0001497,2]
[426394086,1782342643000,-154.55636631,0.00014986,2]
[426394096,1782342643000,-170.9737369,0.00014993,2]
[426394097,1782342643000,-224627.3385553,0.00014993,2]
[426394087,1782342643000,-150.0,0.00014986,2]
[426394085,1782342643000,-150.0,0.00014986,2]
[426394088,1782342643000,-150.00000001,0.00014986,2]
[426394079,1782342643000,-150.0,0.00014968,2]
[426394089,1782342643000,-150.0,0.00014986,2]
[426394091,1782342643000,-297.89529666,0.00014986,2]
[426394090,1782342643000,-209.17418234,0.00014986,2]
[426394095,1782342643000,-124545.3096182,0.00014993,2]
[426394094,1782342643000,-500.0,0.00014992,2]
[426394098,1782342643000,-556679.49189838,0.00014993,2]
[426394100,1782342643000,-741.15841316,0.00014993,2]
[426394099,1782342643000,-638.5,0.00014993,2]
[426394101,1782342643000,-835.3676,0.00014993,2]
[426394102,1782342643000,-704.475934,0.00014993,2]
[426394104,1782342643000,-311.0,0.00012639,2]
[426394103,1782342643000,-1687.49051598,0.00014993,2]
[426394092,1782342643000,-176.84461302,0.0001499,2]
[426394080,1782342643000,-150.0,0.00014969,2]
[426394093,1782342643000,-500.0,0.00014992,2]
[426394073,1782342643000,-433.0,0.00014938,2]
[426394074,1782342643000,-150.0,0.00014949,2]
[426394057,1782342643000,-700.30026944,0.000149,2]
[426394053,1782342643000,-1857.37,0.00014899,2]
[426394050,1782342643000,-542.12,0.00014899,2]
[426394051,1782342643000,-500.0,0.00014899,2]
[426394052,1782342643000,-500.0,0.00014899,2]
[426394059,1782342643000,-1000.0,0.000149,5]
[426394060,1782342643000,-9819.89796294,0.000149,2]
[426394054,1782342643000,-2327.39,0.00014899,2]
[426394055,1782342643000,-25000.0,0.000149,3]
[426394071,1782342643000,-150.0,0.00014935,2]
[426394061,1782342643000,-162.41879737,0.000149,2]
[426394048,1782342643000,-500.0,0.00014899,2]
[426394066,1782342643000,-150.0,0.00014913,2]
[426394062,1782342643000,-1942.52202713,0.000149,2]
[426394070,1782342643000,-150.0,0.00014931,2]
[426394067,1782342643000,-150.0,0.00014918,2]
[426394065,1782342643000,-150.0,0.00014912,2]
[426394063,1782342643000,-150.0,0.00014901,2]
[426394064,1782342643000,-470.04006965,0.00014908,2]
[426394069,1782342643000,-150.0,0.00014923,2]
[426394068,1782342643000,-150.0,0.00014918,2]
[426394072,1782342643000,-150.0,0.00014935,2]
[426394075,1782342643000,-150.0,0.0001495,2]
[426394076,1782342643000,-150.0,0.00014952,2]
[426394077,1782342643000,-150.0,0.00014954,2]
[426394107,1782342644000,-334.0407658,0.00014411,2]
[426394106,1782342644000,-479.37730757,0.00014411,2]
[426394105,1782342644000,-1188.00125038,0.00014993,2]
[426394109,1782342645000,-420.20000901,0.00014411,2]
[426394110,1782342646000,-707.40469,0.00014411,2]
[426394111,1782342646000,-565.01854175,0.00014411,2]
[426394116,1782342650000,156.0,0.00028706,30]
[426394117,1782342652000,156.0,0.00029706,30]
[426394118,1782342653000,156.0,0.00030706,30]
[426394119,1782342662000,161.4,0.00029933,30]
[426394120,1782342663000,161.4,0.00031113,30]
[426394121,1782342669000,172.22,0.00029932,30]
[426394122,1782342691000,156.0,0.00028706,30]
[426394123,1782342693000,156.0,0.00029706,30]
[426394124,1782342694000,156.0,0.00030706,30]
[426394126,1782342707000,178.26,0.00031113,30]
[426394125,1782342707000,178.26,0.00029933,30]
[426394127,1782342738000,190.1,0.00029932,30]
[426394128,1782342759000,346.0,0.00028706,30]
[426394129,1782342760000,346.0,0.00029706,30]
[426394130,1782342761000,346.0,0.00030706,30]
[426394132,1782342773000,3352.98,0.00031292,30]
[426394133,1782342787000,398.47,0.00031179,30]
[426394135,1782342801000,172.22,0.00029932,30]
[426394134,1782342801000,450.0,0.00028706,30]
[426394136,1782342802000,450.0,0.00029706,30]
[426394137,1782342803000,450.0,0.00030706,30]
[426394139,1782342825000,172.23,0.00029932,30]
[426394140,1782342869000,500.0,0.0001,2]
[426394141,1782342869000,161.77536979,0.0001,2]
[426394142,1782342890000,341.55,0.00031179,30]
[426394143,1782342905000,211.0,0.00028706,30]
[426394144,1782342907000,211.0,0.00029706,30]
[426394145,1782342908000,211.0,0.00030706,30]
[426394146,1782342994000,329.0,0.00028706,30]
[426394147,1782342995000,329.0,0.00029706,30]
[426394148,1782342996000,329.0,0.00030706,30]
[426394149,1782343067000,158.0,0.00028706,30]
[426394150,1782343068000,158.0,0.00029706,30]
[426394151,1782343069000,158.0,0.00030706,30]
[426394152,1782343159000,94087.0,0.00031506,30]
[426394153,1782343342000,325.3755298,0.000315,30]
[426394165,1782343511000,10000.0,0.00031,30]
[426394166,1782343538000,10000.0,0.00031,30]
[426394172,1782343728000,157.0,0.00028702,30]
[426394173,1782343730000,161.0,0.00029702,30]
[426394256,1782343763000,661.29,0.00031507,30]
[426394257,1782343765000,156.0,0.00028702,30]
[426394258,1782343767000,156.0,0.00029702,30]
[426394259,1782343768000,156.0,0.00030702,30]
[426394260,1782343778000,661.3,0.00031507,30]
[426394261,1782343827000,294.0,0.00028702,30]
[426394262,1782343829000,294.0,0.00029702,30]
[426394263,1782343830000,294.0,0.00030702,30]
[426394280,1782343831000,-279.89,0.00011685,2]
[426394267,1782343831000,-150.0,0.00011072,2]
[426394268,1782343831000,-166.66,0.00011186,2]
[426394269,1782343831000,-200.0,0.0001121,2]
[426394272,1782343831000,-90.6877285,0.00011265,2]
[426394271,1782343831000,-1025.71,0.00011237,2]
[426394274,1782343831000,-1133.88,0.00011265,2]
[426394277,1782343831000,-279.89,0.000114,2]
[426394276,1782343831000,-3678.41,0.00011325,2]
[426394273,1782343831000,-59.3122715,0.00011265,2]
[426394266,1782343831000,-166.66,0.00010959,2]
[426394275,1782343831000,-1024.44,0.00011314,2]
[426394279,1782343831000,-166.66,0.00011639,2]
[426394284,1782343831000,-162.47,0.00011805,2]
[426394283,1782343831000,-200.0,0.00011771,2]
[426394288,1782343831000,-250.0,0.00012055,2]
[426394285,1782343831000,-166.66,0.00011866,2]
[426394289,1782343831000,-166.66,0.00012093,2]
[426394286,1782343831000,-188.19,0.00011968,2]
[426394282,1782343831000,-216.42324807,0.0001172,2]
[426394281,1782343831000,-6678.34,0.0001171,2]
[426394278,1782343831000,-166.66,0.00011413,2]
[426394287,1782343831000,-279.89,0.0001197,2]
[426394293,1782343832000,-1356.16005787,0.00012503,2]
[426394290,1782343832000,-279.89,0.00012255,2]
[426394291,1782343832000,-302.69,0.00012292,2]
[426394292,1782343832000,-317.78,0.00012293,2]
[426394294,1782343832000,-150.0,0.00012537,2]
[426394300,1782343832000,-12606.31619423,0.00012598,2]
[426394296,1782343832000,-8032.35938465,0.00012538,2]
[426394303,1782343832000,-3246.08616145,0.00012598,2]
[426394298,1782343832000,-279.89,0.0001254,2]
[426394295,1782343832000,-6873.92857413,0.00012538,2]
[426394302,1782343832000,-6775.42776994,0.00012598,2]
[426394297,1782343832000,-691.89909591,0.00012538,2]
[426394310,1782343838000,-500.0,0.00011705,2]
[426394311,1782343838000,-500.0,0.00011705,2]
[426394312,1782343838000,-371.42346935,0.00011705,2]
[426394321,1782343838000,-45.89346935,0.00011705,2]
[426394315,1782343838000,-500.0,0.00011705,2]
[426394313,1782343838000,-128.57653065,0.00011705,2]
[426394314,1782343838000,-500.0,0.00011705,2]
[426394317,1782343838000,-218.32346935,0.00011705,2]
[426394316,1782343838000,-500.0,0.00011705,2]
[426394319,1782343838000,-500.0,0.00011705,2]
[426394318,1782343838000,-281.67653065,0.00011705,2]
[426394320,1782343838000,-500.0,0.00011705,2]
[426394332,1782343838000,-500.0,0.00011705,2]
[426394323,1782343838000,-500.0,0.00011705,2]
[426394334,1782343838000,-500.0,0.00011705,2]
[426394336,1782343838000,-632.13957345,0.00011705,2]
[426394337,1782343838000,-2.53553395,0.00012462,2]
[426394322,1782343838000,-454.10653065,0.00011705,2]
[426394331,1782343838000,-500.0,0.00011705,2]
[426394329,1782343838000,-500.0,0.00011705,2]
[426394328,1782343838000,-500.0,0.00011705,2]
[426394330,1782343838000,-500.0,0.00011705,2]
[426394326,1782343838000,-500.0,0.00011705,2]
[426394324,1782343838000,-500.0,0.00011705,2]
[426394325,1782343838000,-500.0,0.00011705,2]
[426394327,1782343838000,-500.0,0.00011705,2]
[426394404,1782343840000,-176.84461303,0.00012588,2]
[426394402,1782343840000,-406.34446605,0.00012462,2]
[426394403,1782343840000,-414.00867867,0.00012598,2]
[426394405,1782343840000,-39510.58337472,0.00012598,2]
[426394410,1782343840000,-1500.0,0.00012598,2]
[426394406,1782343840000,-545.41116675,0.00012598,2]
[426394411,1782343840000,-345.253,0.00012598,2]
[426394407,1782343840000,-662.34366678,0.00012598,2]
[426394408,1782343840000,-3734.10372514,0.00012598,2]
[426394412,1782343842000,-363.21737898,0.00012598,2]
[426394421,1782343843000,-3488.21152871,0.00012598,2]
[426394420,1782343843000,-10868.65165046,0.00012598,2]
[426394419,1782343843000,-804.8152909,0.00012598,2]
[426394417,1782343843000,-11859.52552518,0.00012598,2]
[426394414,1782343843000,-655.6742,0.00012598,2]
[426394416,1782343843000,-596.53268897,0.00012598,2]
[426394418,1782343843000,-2370.5,0.00012598,2]
[426394415,1782343843000,-906.08322376,0.00012598,2]
[426394413,1782343843000,-239147.93131379,0.00012598,2]
[426394428,1782343846000,-14216.15965616,0.00012598,2]
[426394430,1782343846000,-1000.0,0.00012598,2]
[426394427,1782343846000,-23347.83715345,0.00012598,2]
[426394431,1782343846000,-4400.33003597,0.00012598,2]
[426394432,1782343846000,-1956.37667683,0.00012598,2]
[426394429,1782343846000,-5872.68117204,0.00012598,2]